bitfinex/quotes_BTCUSD_20250428
["timestamp","ask_amount","ask_price","bid_price","bid_amount"]
[1745848024403,0.22182181,94671.0,94667.0,0.21126633]
[1745848024601,0.01056512,94651.0,94634.0,0.00774501]
[1745848024797,0.01056613,94642.0,94634.0,0.01831203]
[1745848025002,0.01056579,94645.0,94640.0,0.22189254]
[1745848025319,0.0105639,94662.0,94655.0,0.22185632]
[1745848025526,0.0105639,94662.0,94648.0,0.01056546]
[1745848025527,0.01056468,94655.0,94646.0,0.21131373]
[1745848025820,0.01056468,94655.0,94646.0,0.01056568]
[1745848026014,0.01056468,94655.0,94646.0,0.22187941]
[1745848026015,0.01056512,94651.0,94646.0,0.22187941]
[1745848026213,0.01056468,94655.0,94649.0,0.22187215]
[1745848026381,0.01056468,94655.0,94651.0,0.21130167]
[1745848027208,0.01056468,94655.0,94647.0,0.21131092]
[1745848027209,0.22186235,94654.0,94647.0,0.21131092]
[1745848027428,0.22186377,94653.0,94648.0,0.21130789]
[1745848027579,0.22186235,94654.0,94649.0,0.2113061]
[1745848027784,0.22186235,94654.0,94650.0,0.2113045]
[1745848028074,0.22185894,94655.0,94649.0,0.21130676]
[1745848028275,0.01056468,94655.0,94649.0,0.22187099]
[1745848028626,0.01056501,94652.0,94648.0,0.2123082]
[1745848028781,0.0105649,94653.0,94648.0,0.2113082]
[1745848028975,0.0105649,94653.0,94649.0,0.21130615]
[1745848029182,0.22186106,94654.0,94649.0,0.001]
[1745848029408,0.01056468,94655.0,94650.0,0.01056524]
[1745848029618,0.01056479,94654.0,94649.0,0.01056535]
[1745848029923,0.22185611,94656.0,94652.0,0.21130015]
[1745848030063,0.22185611,94656.0,94650.0,0.22187004]
[1745848030266,0.22185856,94655.0,94650.0,0.2113048]
[1745848030642,0.01056602,94643.0,94639.0,0.22189538]
[1745848030842,0.01056591,94644.0,94640.0,0.22189316]
[1745848031045,0.01056557,94647.0,94643.0,0.01056602]
[1745848031250,0.01056546,94648.0,94644.0,0.21131799]
[1745848031423,0.22187941,94646.0,94642.0,0.2113218]
[1745848031617,0.01056568,94646.0,94642.0,0.22188793]
[1745848031782,0.01056557,94647.0,94643.0,0.22188548]
[1745848032007,0.22187725,94647.0,94643.0,0.22188548]
[1745848032289,0.22188399,94645.0,94615.0,0.08454291]
[1745848032493,0.01056646,94639.0,94633.0,0.21176261]
[1745848032619,0.21133383,94637.0,94633.0,0.0004243]
[1745848032823,0.22189781,94639.0,94633.0,0.01099143]
[1745848033060,0.01056602,94643.0,94633.0,0.01099143]
[1745848033061,0.01056546,94648.0,94640.0,0.01056635]
[1745848033423,0.21133196,94638.0,94633.0,0.21176695]
[1745848033591,0.21133196,94638.0,94633.0,0.0004243]
[1745848033799,0.01056646,94639.0,94633.0,0.22233305]
[1745848034004,0.00262396,94638.0,94633.0,0.22233305]
[1745848034226,0.2218938,94640.0,94636.0,0.0109911]
[1745848034432,0.01319042,94639.0,94636.0,0.0004243]
[1745848034616,0.01056535,94649.0,94643.0,0.01056602]
[1745848034840,0.22187621,94648.0,94643.0,0.01056602]
[1745848034966,0.01056546,94648.0,94644.0,0.22188306]
[1745848035365,0.01056546,94648.0,94640.0,0.22189296]
[1745848035366,0.22187799,94647.0,94642.0,0.01056613]
[1745848035608,0.01056546,94648.0,94643.0,0.2218853]
[1745848035807,0.01056535,94649.0,94645.0,0.01056579]
[1745848036049,0.21129782,94654.0,94649.0,0.22187088]
[1745848036200,0.01156468,94655.0,94651.0,0.21130215]
[1745848036402,0.01056512,94651.0,94647.0,0.22187489]
[1745848036608,0.001,94655.0,94650.0,0.2113042]
[1745848036817,0.01056501,94652.0,94648.0,0.22187384]
[1745848037200,0.01056579,94645.0,94633.0,0.01099143]
[1745848037580,0.2113182,94644.0,94638.0,0.21133068]
[1745848038082,0.01056591,94644.0,94640.0,0.22189307]
[1745848038506,0.01056602,94643.0,94638.0,0.22189726]
[1745848038680,0.01056602,94643.0,94638.0,0.22189672]
[1745848038918,0.01056602,94643.0,94636.0,0.0024243]
[1745848038919,0.21133383,94637.0,94636.0,0.0024243]
[1745848039879,0.21133383,94637.0,94636.0,0.0004243]
[1745848040085,0.65822397,94637.0,94636.0,0.0004243]
[1745848040779,0.66022397,94637.0,94636.0,0.0004243]
[1745848040955,0.65822397,94637.0,94636.0,0.0004243]
[1745848041392,0.66222397,94637.0,94636.0,0.0014243]
[1745848041584,0.55533383,94637.0,94636.0,0.0014243]
[1745848042930,0.55833383,94637.0,94636.0,0.0014243]
[1745848043950,0.007,94637.0,94636.0,0.0014243]
[1745848045172,0.003,94637.0,94636.0,0.0004243]
[1745848045799,0.01319031,94640.0,94636.0,0.2117593]
[1745848045971,0.00262396,94640.0,94639.0,0.21132936]
[1745848046175,0.01056602,94643.0,94636.0,0.0109911]
[1745848046373,0.01056557,94647.0,94640.0,0.211326]
[1745848046599,0.01056635,94640.0,94636.0,0.0004243]
[1745848047019,0.21133182,94638.0,94636.0,0.0024243]
[1745848048461,0.001,94638.0,94636.0,0.01051649]
[1745848048664,0.001,94638.0,94636.0,0.22185156]
[1745848048878,0.001,94638.0,94636.0,0.21375937]
[1745848049985,0.001,94638.0,94636.0,0.0024243]
[1745848050204,0.001,94638.0,94637.0,0.21133383]
[1745848051132,0.01056635,94640.0,94636.0,0.21376005]
[1745848051357,0.2218965,94639.0,94636.0,0.0024243]
[1745848051595,0.001,94638.0,94637.0,0.22190048]
[1745848052906,0.01056624,94641.0,94637.0,0.22190048]
[1745848053132,0.01056535,94649.0,94642.0,0.21132266]
[1745848053359,0.21131848,94644.0,94638.0,0.22189636]
[1745848053589,0.001,94639.0,94638.0,0.22189636]
[1745848053810,0.22188186,94645.0,94638.0,0.22189636]
[1745848053811,0.22188209,94645.0,94640.0,0.22189174]
[1745848054034,0.22188209,94645.0,94641.0,0.21132475]
[1745848054035,0.22188421,94644.0,94641.0,0.21132475]
[1745848054260,0.22188421,94644.0,94640.0,0.21132666]
[1745848054713,0.001,94644.0,94640.0,0.01056635]
[1745848054914,0.001,94644.0,94625.0,0.01027529]
[1745848054915,0.21133383,94637.0,94625.0,0.01027529]
[1745848055174,0.21395779,94637.0,94632.0,0.01056724]
[1745848055399,0.01056646,94639.0,94634.0,0.01056702]
[1745848055631,0.21133383,94637.0,94634.0,0.01056702]
[1745848055855,0.21395578,94638.0,94635.0,0.01056691]
[1745848056126,0.21133383,94637.0,94634.0,0.22190315]
[1745848056353,0.22189771,94639.0,94634.0,0.22190315]
[1745848056583,0.21133383,94637.0,94634.0,0.22190315]
[1745848056802,0.22189377,94640.0,94636.0,0.21375604]
[1745848057023,0.21133383,94637.0,94636.0,0.0024243]
[1745848057491,0.21233383,94637.0,94636.0,0.0024243]
[1745848057711,0.21133383,94637.0,94636.0,0.0024243]
[1745848059678,0.21233383,94637.0,94636.0,0.0024243]
[1745848061351,0.2113718,94620.0,94601.0,0.004]
[1745848061576,0.2113852,94614.0,94601.0,0.004]
[1745848061815,0.6531141,94613.0,94601.0,0.004]
[1745848062038,0.21141202,94602.0,94599.0,0.0004243]
[1745848062267,0.21141649,94600.0,94599.0,0.0004243]
[1745848062495,0.32093059,94600.0,94599.0,0.0004243]
[1745848062715,0.31830663,94600.0,94599.0,0.0004243]
[1745848063565,0.21141649,94600.0,94599.0,0.0004243]
[1745848063850,0.22200649,94592.0,94585.0,0.21145001]
[1745848064051,0.22200649,94592.0,94587.0,0.01057227]
[1745848064226,0.01057149,94594.0,94589.0,0.01057205]
[1745848064399,0.01057026,94605.0,94593.0,0.0105716]
[1745848064604,0.0105706,94602.0,94598.0,0.21142012]
[1745848064821,0.008,94600.0,94598.0,0.21142012]
[1745848065255,0.004,94600.0,94598.0,0.21142012]
[1745848065425,0.004,94600.0,94593.0,0.0105716]
[1745848065426,0.01057149,94594.0,94585.0,0.0105725]
[1745848065625,0.01057149,94594.0,94588.0,0.01057216]
[1745848065960,0.22199792,94596.0,94590.0,0.22200974]
[1745848066172,0.002,94592.0,94590.0,0.22200974]
[1745848066575,0.01057138,94595.0,94583.0,0.008125]
[1745848066780,0.21145038,94585.0,94583.0,0.008125]
[1745848067066,0.00262396,94584.0,94583.0,0.008125]
[1745848068109,0.00262396,94584.0,94583.0,0.02791894]
[1745848068869,0.00262396,94585.0,94583.0,0.02791894]
[1745848069101,0.21607451,94585.0,94583.0,0.02791894]
[1745848069256,0.21407451,94585.0,94583.0,0.02791894]
[1745848069714,0.002,94584.0,94583.0,0.008125]
[1745848069930,0.21407451,94585.0,94584.0,0.01979763]
[1745848070137,0.32296465,94585.0,94584.0,0.01979763]
[1745848070346,0.32034069,94585.0,94584.0,0.01979763]
[1745848070542,0.32034069,94585.0,94583.0,0.008125]
[1745848070777,0.1095141,94584.0,94583.0,0.008125]
[1745848071871,0.00262396,94584.0,94583.0,0.008125]
[1745848072393,0.002,94585.0,94583.0,0.21957948]
[1745848072595,0.01057238,94586.0,94583.0,0.21957948]
[1745848072824,0.22202166,94586.0,94583.0,0.008125]
[1745848073027,0.002,94584.0,94583.0,0.008125]
[1745848073833,0.21145029,94585.0,94583.0,0.008125]
[1745848074034,0.21407425,94585.0,94583.0,0.008125]
[1745848074289,0.22402045,94586.0,94583.0,0.008125]
[1745848074494,0.21145032,94585.0,94583.0,0.008125]
[1745848074693,0.22202045,94586.0,94583.0,0.008125]
[1745848075231,0.01057238,94586.0,94583.0,0.008125]
[1745848075429,0.22202051,94586.0,94583.0,0.008125]
[1745848075806,0.21407526,94585.0,94583.0,0.008125]
[1745848076015,0.21407526,94585.0,94584.0,0.01979557]
[1745848076194,0.00262396,94585.0,94584.0,0.01979557]
[1745848076465,0.22202253,94587.0,94584.0,0.01979557]
[1745848076614,0.21144824,94586.0,94584.0,0.01979557]
[1745848076817,0.21145001,94585.0,94584.0,0.01979557]
[1745848077399,0.002,94585.0,94584.0,0.01979557]
[1745848077601,0.21345001,94585.0,94584.0,0.01979557]
[1745848077807,0.21145225,94584.0,94583.0,0.008125]
[1745848078006,0.21345001,94585.0,94583.0,0.008125]
[1745848078209,0.21145225,94584.0,94583.0,0.008125]
[1745848078410,0.31834239,94584.0,94583.0,0.008125]
[1745848079037,0.32034239,94584.0,94583.0,0.008125]
[1745848079236,0.31834239,94584.0,94583.0,0.008125]
[1745848079618,0.32134239,94584.0,94583.0,0.008125]
[1745848084544,0.66134239,94584.0,94583.0,0.008125]
[1745848084970,0.66134239,94584.0,94581.0,0.1004251]
[1745848084971,0.762915,94584.0,94581.0,0.0536251]
[1745848085169,0.01058055,94513.0,94510.0,0.00591796]
[1745848085367,0.55162901,94505.0,94504.0,1e-08]
[1745848085614,0.56616986,94505.0,94504.0,1e-08]
[1745848085815,0.22221516,94503.0,94501.0,1.28185158]
[1745848086019,0.21163797,94501.0,94500.0,0.01802309]
[1745848086236,0.0485,94500.0,94499.0,0.85460003]
[1745848086439,0.21168053,94482.0,94481.0,1e-08]
[1745848086683,0.21432743,94482.0,94481.0,1e-08]
[1745848087211,0.0026469,94482.0,94481.0,1e-08]
[1745848087614,0.01058257,94495.0,94481.0,0.21168069]
[1745848087815,0.00264617,94494.0,94482.0,0.21168053]
[1745848088071,0.00264617,94494.0,94492.0,0.21165605]
[1745848088271,0.00264617,94494.0,94481.0,1e-08]
[1745848088272,0.21163109,94505.0,94487.0,0.21166739]
[1745848088477,0.01058167,94503.0,94487.0,0.21166739]
[1745848088685,0.109536,94502.0,94481.0,1e-08]
[1745848088910,0.01058357,94486.0,94481.0,1e-08]
[1745848089119,0.0105838,94484.0,94481.0,1e-08]
[1745848089320,0.10953652,94483.0,94481.0,1e-08]
[1745848089523,0.01058133,94506.0,94481.0,1e-08]
[1745848089694,0.01058189,94501.0,94482.0,0.01058402]
[1745848089894,0.01058223,94498.0,94484.0,0.21167425]
[1745848090112,0.01058245,94496.0,94481.0,1e-08]
[1745848090301,0.10953628,94495.0,94489.0,0.21166478]
[1745848090501,0.00264589,94494.0,94482.0,0.01058402]
[1745848090682,0.10953603,94494.0,94487.0,0.21166744]
[1745848090877,0.10953603,94494.0,94488.0,0.21166528]
[1745848091086,0.00264587,94501.0,94498.0,0.01058223]
[1745848091285,0.10689014,94500.0,94484.0,0.22225761]
[1745848091518,0.00264575,94499.0,94495.0,0.21165025]
[1745848091753,0.10689014,94498.0,94481.0,1e-08]
[1745848091957,0.01058268,94494.0,94481.0,1e-08]
[1745848092151,0.10953626,94493.0,94481.0,1e-08]
[1745848092354,0.10953626,94493.0,94481.0,0.21168212]
[1745848092507,0.10953626,94493.0,94481.0,0.2116823]
[1745848092730,0.0105829,94492.0,94481.0,1e-08]
[1745848092950,0.01058324,94489.0,94481.0,1e-08]
[1745848093155,0.10953627,94488.0,94481.0,1e-08]
[1745848093766,0.10953627,94488.0,94483.0,0.21167605]
[1745848094004,0.00264605,94496.0,94482.0,0.21168053]
[1745848094232,0.10953614,94495.0,94483.0,0.21167669]
[1745848094677,0.12011871,94495.0,94481.0,1e-08]
[1745848095084,0.01058268,94494.0,94481.0,0.21168103]
[1745848095297,0.10953614,94493.0,94481.0,0.21168103]
[1745848095508,0.10953614,94493.0,94485.0,0.21167381]
[1745848095681,0.10689014,94493.0,94482.0,0.21167896]
[1745848095884,0.10953614,94493.0,94482.0,0.21167896]
[1745848096119,0.12011893,94493.0,94481.0,1e-08]
[1745848096459,0.22226185,94484.0,94481.0,1e-08]
[1745848096661,0.1095365,94483.0,94481.0,1e-08]
[1745848097073,0.21168053,94482.0,94481.0,1e-08]
[1745848097265,0.31857067,94482.0,94481.0,1e-08]
[1745848097502,0.2222257,94499.0,94481.0,1e-08]
[1745848097651,0.01058324,94489.0,94481.0,1e-08]
[1745848097855,0.10953624,94488.0,94481.0,1e-08]
[1745848099449,0.10953624,94488.0,94481.0,0.21168179]
[1745848099644,0.10953624,94488.0,94481.0,1e-08]
[1745848099848,0.10953624,94488.0,94482.0,0.21168053]
[1745848100079,0.10953624,94488.0,94481.0,1e-08]
[1745848100292,0.10953624,94488.0,94482.0,0.21168053]
[1745848100531,0.10953624,94488.0,94481.0,1e-08]
[1745848101024,0.10953624,94488.0,94485.0,0.21167215]
[1745848101227,0.10953624,94488.0,94481.0,1e-08]
[1745848101228,0.10953624,94488.0,94484.0,0.21167539]
[1745848101700,0.10953624,94488.0,94483.0,0.21167804]
[1745848102308,0.10953624,94488.0,94481.0,1e-08]
[1745848102744,0.10953624,94488.0,94482.0,0.21167957]
[1745848103658,0.00264608,94494.0,94486.0,0.01058357]
[1745848103865,0.10953613,94500.0,94485.0,0.21167217]
[1745848104068,0.10953613,94500.0,94481.0,1e-08]
[1745848104069,0.01058301,94491.0,94481.0,1e-08]
[1745848104279,0.32119883,94490.0,94481.0,1e-08]
[1745848104495,0.0105801,94517.0,94493.0,0.01058279]
[1745848104697,0.0105801,94517.0,94482.0,0.0456]
[1745848104698,0.01058245,94496.0,94478.0,0.002]
[1745848104908,0.2116624,94491.0,94478.0,0.002]
[1745848105116,0.0105838,94484.0,94478.0,0.002]
[1745848105344,0.00264623,94483.0,94478.0,0.002]
[1745848105544,0.10689014,94484.0,94478.0,0.002]
[1745848105754,0.10689014,94484.0,94481.0,0.21168167]
[1745848105952,0.10689014,94484.0,94482.0,0.2116786]
[1745848106156,0.11032,94487.0,94482.0,0.2116786]
[1745848106364,0.00264605,94498.0,94487.0,0.21166933]
[1745848106594,0.10689014,94497.0,94484.0,0.21167605]
[1745848106797,0.01058257,94495.0,94481.0,1e-08]
[1745848107007,0.10953604,94494.0,94486.0,0.21167085]
[1745848107204,0.21985604,94494.0,94486.0,0.21167085]
[1745848107405,0.21721014,94494.0,94486.0,0.21167085]
[1745848107609,0.00264589,94493.0,94486.0,0.21167085]
[1745848107852,0.36292006,94510.0,94488.0,0.21166015]
[1745848108060,0.01058257,94495.0,94481.0,1e-08]
[1745848108271,0.10953612,94494.0,94483.0,0.21167789]
[1745848108466,0.1201188,94494.0,94481.0,1e-08]
[1745848108673,0.0105829,94492.0,94481.0,1e-08]
[1745848108877,0.10953626,94491.0,94481.0,1e-08]
[1745848109315,0.21721014,94491.0,94481.0,1e-08]
[1745848109472,0.00264611,94490.0,94482.0,0.21168053]
[1745848109669,0.10953625,94490.0,94482.0,0.21168053]
[1745848109880,0.10953625,94490.0,94481.0,1e-08]
[1745848110086,0.10953625,94490.0,94481.0,0.21168165]
[1745848110289,0.10953625,94490.0,94482.0,0.21168018]
[1745848111143,0.10953625,94490.0,94486.0,0.21167097]
[1745848111276,0.10953625,94490.0,94481.0,1e-08]
[1745848111838,0.10689014,94489.0,94481.0,1e-08]
[1745848112066,0.00264608,94488.0,94481.0,1e-08]
[1745848112246,0.10689014,94487.0,94481.0,1e-08]
[1745848112416,0.00264607,94486.0,94481.0,1e-08]
[1745848113009,0.00264607,94486.0,94481.0,0.21168119]
[1745848113238,0.00264607,94486.0,94481.0,1e-08]
[1745848113392,0.00725001,94485.0,94481.0,1e-08]
[1745848113598,0.00264607,94484.0,94481.0,1e-08]
[1745848113793,0.00264607,94484.0,94481.0,0.21168031]
[1745848113997,0.00725001,94485.0,94483.0,0.21167652]
[1745848114195,0.00725001,94485.0,94481.0,1e-08]
[1745848114465,0.00725001,94485.0,94483.0,0.21167801]
[1745848114978,0.00725001,94502.0,94500.0,0.21163927]
[1745848115753,0.21160958,94514.0,94500.0,0.21163927]
[1745848115754,0.00725001,94501.0,94500.0,0.21163927]
[1745848116315,0.00725001,94501.0,94500.0,0.21219113]
[1745848116815,0.11032,94521.0,94516.0,0.21160393]
[1745848116987,0.00264508,94520.0,94516.0,0.21160393]
[1745848117398,0.00264508,94520.0,94514.0,0.21160693]
[1745848117593,0.00728356,94519.0,94514.0,0.21160693]
[1745848117826,0.00264511,94518.0,94514.0,0.21160693]
[1745848117994,0.00264511,94518.0,94513.0,0.21161034]
[1745848118643,0.01058021,94516.0,94497.0,0.01058234]
[1745848118867,0.00264519,94515.0,94504.0,0.21163125]
[1745848119074,0.00264519,94515.0,94505.0,0.21162815]
[1745848119283,0.00264519,94515.0,94502.0,0.21163573]
[1745848119475,0.00264519,94515.0,94503.0,0.21163349]
[1745848119657,0.00264519,94515.0,94508.0,0.21162173]
[1745848119879,0.00992875,94514.0,94498.0,0.00789134]
[1745848120090,0.01058055,94513.0,94493.0,0.01058279]
[1745848120219,0.1095356,94512.0,94502.0,0.21163354]
[1745848120419,0.00264546,94512.0,94504.0,0.08454291]
[1745848120623,0.00728356,94514.0,94505.0,0.01058145]
[1745848120853,0.01057932,94524.0,94495.0,0.211]
[1745848120854,0.00728356,94513.0,94508.0,0.21162171]
[1745848121057,0.00728356,94513.0,94507.0,0.21162414]
[1745848121225,0.00728356,94512.0,94507.0,0.21162414]
[1745848121426,0.00728356,94512.0,94498.0,0.01058223]
[1745848121635,0.00728356,94512.0,94506.0,0.21162629]
[1745848121839,0.00728356,94512.0,94508.0,0.21162194]
[1745848122046,0.0026452,94518.0,94509.0,0.21161899]
[1745848122242,0.0026452,94517.0,94499.0,0.01058212]
[1745848122446,0.0026452,94517.0,94508.0,0.21162105]
[1745848122646,0.00727712,94516.0,94498.0,0.01058223]
[1745848122849,0.36292006,94510.0,94499.0,0.00055159]
[1745848123048,0.00264543,94509.0,94495.0,0.22223174]
[1745848123230,0.10953557,94509.0,94501.0,0.21163772]
[1745848123430,0.0072765,94508.0,94500.0,0.21163833]
[1745848123640,0.01058066,94512.0,94501.0,0.21163758]
[1745848123838,0.12011634,94511.0,94496.0,0.01058245]
[1745848124170,0.10953557,94511.0,94496.0,0.2222304]
[1745848124377,0.10953557,94511.0,94491.0,0.00798518]
[1745848124378,0.21165812,94492.0,94491.0,0.00798518]
[1745848124584,0.21430397,94492.0,94491.0,0.00798518]
[1745848124783,0.00264585,94492.0,94491.0,0.00798518]
[1745848124987,0.21430397,94492.0,94491.0,0.00798518]
[1745848125186,0.2116644,94490.0,94478.0,0.002]
[1745848125319,0.00264585,94489.0,94478.0,0.01313736]
[1745848125525,0.21168049,94483.0,94478.0,0.002]
[1745848125724,0.00264614,94482.0,94478.0,0.002]
[1745848125931,0.10953628,94482.0,94478.0,0.002]
[1745848126154,0.11681196,94482.0,94478.0,0.002]
[1745848127175,0.00727568,94482.0,94478.0,0.01258447]
[1745848127367,0.00727568,94482.0,94479.0,0.01113712]
[1745848127612,0.00727568,94482.0,94481.0,0.00398229]
[1745848128005,0.00727568,94482.0,94475.0,0.22228098]
[1745848128006,0.001,94434.0,94421.0,0.004]
[1745848128271,0.01058974,94431.0,94421.0,0.004]
[1745848128483,0.00264772,94433.0,94421.0,0.004]
[1745848128688,0.0026475,94450.0,94427.0,0.0005561]
[1745848128895,0.0026475,94450.0,94425.0,0.211]
[1745848128896,0.00264724,94449.0,94428.0,0.00981062]
[1745848129102,0.00727568,94464.0,94435.0,0.0951322]
[1745848129300,0.10953713,94463.0,94448.0,0.22234297]
[1745848129529,0.10953713,94463.0,94451.0,0.0105875]
[1745848129742,0.10953713,94463.0,94456.0,0.21173766]
[1745848129939,0.0020919,94462.0,94459.0,0.0105866]
[1745848130053,0.10953679,94477.0,94458.0,0.01058671]
[1745848130256,0.10953679,94477.0,94457.0,0.21173454]
[1745848130257,0.00726096,94476.0,94457.0,0.01058682]
[1745848130461,0.00726096,94476.0,94462.0,0.01058626]
[1745848130462,0.10953679,94475.0,94462.0,0.01058626]
[1745848130716,0.10953679,94475.0,94464.0,0.01058604]
[1745848131059,0.10953679,94475.0,94469.0,0.21170819]
[1745848131263,0.10953679,94475.0,94470.0,0.21170591]
[1745848131764,0.10953679,94475.0,94472.0,0.21170195]
[1745848131956,0.10689014,94475.0,94474.0,0.21169845]
[1745848132171,0.01454085,94461.0,94429.0,0.21179897]
[1745848132370,0.10953763,94460.0,94445.0,0.21176125]
[1745848132669,0.10953763,94460.0,94446.0,0.21175968]
[1745848132883,0.10953763,94460.0,94448.0,0.21175526]
[1745848133185,0.10953763,94460.0,94451.0,0.21174853]
[1745848133388,0.10953763,94460.0,94442.0,0.0105885]
[1745848133389,0.00726096,94469.0,94468.0,0.2117119]
[1745848133619,0.1141511,94469.0,94457.0,0.01058682]
[1745848133795,0.00264654,94468.0,94461.0,0.21172563]
[1745848133949,0.00264654,94468.0,94463.0,0.21172164]
[1745848134900,0.00264654,94468.0,94463.0,0.21172296]
[1745848135101,0.00264654,94468.0,94464.0,0.21171944]
[1745848135307,0.00264654,94468.0,94463.0,0.21172296]
[1745848135713,0.10689014,94467.0,94461.0,0.001]
[1745848135913,0.00264673,94466.0,94462.0,0.21172534]
[1745848136131,0.10689014,94465.0,94458.0,0.21173322]
[1745848136323,0.00264674,94464.0,94459.0,0.21173207]
[1745848136525,0.10689014,94463.0,94461.0,0.21172629]
[1745848136655,0.00264669,94477.0,94465.0,0.01058593]
[1745848136871,0.10689014,94476.0,94468.0,0.21171058]
[1745848137076,0.00264647,94475.0,94468.0,0.21171058]
[1745848137272,0.00264647,94475.0,94469.0,0.21170966]
[1745848137273,0.10689014,94474.0,94469.0,0.21170966]
[1745848137537,0.10689014,94474.0,94472.0,0.21170181]
[1745848137750,0.10689014,94474.0,94472.0,0.21170173]
[1745848137901,0.10689014,94474.0,94468.0,0.01058559]
[1745848137902,0.10689014,94474.0,94468.0,0.21171092]
[1745848138114,0.00264647,94473.0,94469.0,0.21170845]
[1745848138332,0.10689014,94472.0,94469.0,0.2117082]
[1745848138532,0.00264646,94471.0,94469.0,0.2117082]
[1745848138728,0.10689014,94470.0,94469.0,0.2117082]
[1745848139562,0.001,94475.0,94474.0,0.21169845]
[1745848139973,0.0008508,94482.0,94481.0,0.21168277]
[1745848141076,0.0028508,94482.0,94481.0,0.21168277]
[1745848142309,0.21169989,94474.0,94457.0,0.01058682]
[1745848142505,0.10953658,94473.0,94464.0,0.22230572]
[1745848142833,0.10953658,94473.0,94464.0,0.00796038]
[1745848143177,0.10953658,94473.0,94460.0,0.01058649]
[1745848143363,0.10953658,94473.0,94460.0,0.22231561]
[1745848143559,0.10953658,94473.0,94464.0,0.01258604]
[1745848143883,0.10953658,94473.0,94464.0,0.002]
[1745848144084,0.10953658,94473.0,94459.0,0.0105866]
[1745848144286,0.10953658,94473.0,94464.0,0.2223069]
[1745848144492,0.10953658,94473.0,94463.0,0.01058615]
[1745848144690,0.10953658,94473.0,94464.0,0.01058604]
[1745848144909,0.12012161,94473.0,94461.0,0.01058637]
[1745848145169,0.10953658,94473.0,94463.0,0.01058615]
[1745848145415,0.00264644,94473.0,94464.0,0.01058604]
[1745848145564,0.01058671,94458.0,94455.0,0.000554]
[1745848145771,0.0105875,94451.0,94437.0,0.01058906]
[1745848145976,0.10953733,94450.0,94437.0,0.22237011]
[1745848146417,0.10953733,94450.0,94439.0,0.01058884]
[1745848146592,0.10953733,94450.0,94439.0,0.22236565]
[1745848146777,0.10953733,94450.0,94443.0,0.22235629]
[1745848147032,0.00264714,94454.0,94447.0,0.01058794]
[1745848147240,0.0026469,94459.0,94450.0,0.01058761]
[1745848147482,0.10689014,94458.0,94450.0,0.01058761]
[1745848147687,0.0026469,94457.0,94448.0,0.22234394]
[1745848147885,0.10689014,94456.0,94450.0,0.01058761]
[1745848148042,0.0026469,94455.0,94450.0,0.01058761]
[1745848148243,0.10689014,94456.0,94453.0,0.22233171]
[1745848148577,0.00264686,94455.0,94450.0,0.01058761]
[1745848148783,0.10689014,94456.0,94453.0,0.01058727]
[1745848148990,0.10689014,94456.0,94451.0,0.22233604]
[1745848149193,0.00264688,94455.0,94448.0,0.01058783]
[1745848149347,0.00264688,94455.0,94447.0,0.22234479]
[1745848149548,0.00264688,94455.0,94447.0,0.01058794]
[1745848149803,0.00264688,94455.0,94446.0,0.01058806]
[1745848150009,0.00264688,94455.0,94447.0,0.01058794]
[1745848150212,0.00264688,94455.0,94443.0,0.01058839]
[1745848150552,0.00264688,94455.0,94448.0,0.21175667]
[1745848150757,0.00264688,94455.0,94446.0,0.22234892]
[1745848150938,0.00264688,94455.0,94446.0,0.01058806]
[1745848151141,0.00264688,94455.0,94447.0,0.01058794]
[1745848151293,0.00264688,94455.0,94446.0,0.22234921]
[1745848151489,0.00264688,94455.0,94442.0,0.0105885]
[1745848151690,0.00264688,94455.0,94428.0,0.002]
[1745848151691,0.01058929,94435.0,94428.0,0.002]
[1745848151967,0.00264742,94434.0,94420.0,0.01059097]
[1745848152165,0.00264743,94436.0,94425.0,0.22239727]
[1745848152531,0.00264743,94436.0,94428.0,0.01059007]
[1745848152731,0.10545231,94437.0,94434.0,0.0105894]
[1745848152931,0.001,94435.0,94432.0,0.21179261]
[1745848153137,0.001,94435.0,94433.0,0.21178867]
[1745848153332,0.00209138,94436.0,94428.0,0.2223916]
[1745848153562,0.22239418,94428.0,94425.0,0.005]
[1745848153716,0.10898152,94427.0,94425.0,0.005]
[1745848154747,0.10689014,94427.0,94424.0,0.01059052]
[1745848154950,0.00209138,94426.0,94422.0,0.21181504]
[1745848155150,0.001,94435.0,94433.0,0.21179013]
[1745848155371,0.10689014,94434.0,94426.0,0.0105903]
[1745848155573,0.00209138,94433.0,94430.0,0.21179618]
[1745848155773,0.00209138,94433.0,94427.0,0.21180382]
[1745848155975,0.00209138,94433.0,94431.0,0.2117945]
[1745848156777,0.00209138,94446.0,94433.0,0.01058951]
[1745848157100,0.10689014,94445.0,94435.0,0.21178567]
[1745848157296,0.00209138,94444.0,94435.0,0.21178567]
[1745848157513,0.10689014,94443.0,94431.0,0.01058974]
[1745848157711,0.00209138,94442.0,94433.0,0.21178895]
[1745848157920,0.10689014,94441.0,94431.0,0.001]
[1745848158157,0.00209138,94440.0,94433.0,0.21178999]
[1745848158343,0.10689014,94439.0,94432.0,0.21179261]
[1745848158560,0.00209138,94438.0,94434.0,0.2117876]
[1745848158770,0.10689014,94437.0,94432.0,0.21179194]
[1745848158972,0.00209138,94436.0,94433.0,0.21179022]
[1745848159172,0.10898152,94436.0,94432.0,0.01058963]
[1745848159374,0.10898152,94436.0,94431.0,0.01058974]
[1745848159607,0.10898152,94436.0,94434.0,0.21178788]
[1745848159815,0.10898152,94436.0,94429.0,0.01058996]
[1745848159816,0.00209138,94448.0,94444.0,0.01058828]
[1745848160020,0.10912,94441.0,94440.0,0.21177467]
[1745848160230,0.00209138,94446.0,94445.0,0.21176284]
[1745848160435,0.00209138,94447.0,94438.0,0.21177749]
[1745848160639,0.00209138,94447.0,94442.0,0.2117699]
[1745848160849,0.00209138,94447.0,94436.0,0.21178342]
[1745848161041,0.32923974,94446.0,94434.0,0.21178715]
[1745848161243,0.00209138,94445.0,94434.0,0.22237655]
[1745848161554,0.10689014,94444.0,94434.0,0.22237655]
[1745848161756,0.00209138,94443.0,94430.0,0.21179511]
[1745848161954,0.10689014,94442.0,94431.0,0.01058974]
[1745848162138,0.00209138,94441.0,94437.0,0.21178091]
[1745848162336,0.10689014,94440.0,94437.0,0.21178091]
[1745848162517,0.00209138,94439.0,94437.0,0.21178091]
[1745848163644,0.10789014,94440.0,94438.0,0.21177915]
[1745848163848,0.001,94440.0,94439.0,0.21177691]
[1745848164975,0.00209138,94455.0,94439.0,0.21177691]
[1745848164976,0.00209138,94455.0,94446.0,0.21176073]
[1745848165178,0.10689014,94454.0,94450.0,0.21175128]
[1745848165371,0.00209138,94453.0,94451.0,0.21174848]
[1745848165684,0.00209138,94453.0,94451.0,0.21174962]
[1745848165877,0.00209138,94453.0,94448.0,0.21175662]
[1745848166128,0.00209138,94453.0,94449.0,0.21175234]
[1745848166513,0.00209138,94453.0,94446.0,0.21176025]